bitfinex/quotes_SOLUSD_20220216
["timestamp","ask_amount","ask_price","bid_price","bid_amount"]
[1644974666922,0.40496144,103.28,103.25,2.43983242]
[1644974667319,0.40496144,103.28,103.25,2.68983242]
[1644974667519,0.00496144,103.28,103.26,97.0]
[1644974667723,0.00496144,103.28,103.26,99.43983242]
[1644974667920,0.00496144,103.28,103.27,2.43983242]
[1644974668121,0.00496144,103.28,103.27,2.68983242]
[1644974668327,1.68e-05,103.29,103.28,42.0]
[1644974668719,1.68e-05,103.29,103.28,2.43983242]
[1644974670822,1.68e-05,103.29,103.28,16.95543242]
[1644974671024,1.68e-05,103.29,103.28,16.45543242]
[1644974673755,0.5601096,103.3,103.28,16.45543242]
[1644974680564,0.5601096,103.3,103.28,16.70543242]
[1644974682765,0.5601096,103.3,103.28,16.45543242]
[1644974682966,0.5601096,103.3,103.28,14.5156]
[1644974689876,0.5601096,103.3,103.28,16.95543242]
[1644974693280,3.03219997,103.29,103.28,16.95543242]
[1644974693480,3.03219997,103.29,103.28,14.5156]
[1644974694281,0.5601096,103.3,103.28,14.5156]
[1644974694681,3.03219997,103.29,103.28,14.5156]
[1644974695083,0.5601096,103.3,103.28,14.5156]
[1644974696085,3.03219997,103.29,103.28,14.5156]
[1644974697386,0.5601096,103.3,103.28,14.5156]
[1644974699486,0.5601096,103.3,103.28,16.95543242]
[1644974701393,0.5601096,103.3,103.28,14.5156]
[1644974702890,3.03219997,103.29,103.28,14.5156]
[1644974703391,0.5601096,103.3,103.28,14.5156]
[1644974704192,3.03219997,103.29,103.28,14.5156]
[1644974706620,2.81798976,103.29,103.28,14.5156]
[1644974707118,0.5601096,103.3,103.28,14.72981021]
[1644974707819,0.0001096,103.3,103.28,17.16964263]
[1644974708020,0.24324132,103.31,103.29,42.0]
[1644974708222,0.24324132,103.31,103.3,111.5136]
[1644974708423,0.24324132,103.31,103.3,130.17373074]
[1644974708619,0.24324132,103.31,103.3,147.3118663]
[1644974708820,0.67623528,103.35,103.32,97.0]
[1644974709023,0.67623528,103.35,103.32,110.99]
[1644974709221,0.67623528,103.35,103.33,14.5075]
[1644974709421,0.67623528,103.35,103.33,16.94733242]
[1644974709621,0.67623528,103.35,103.34,0.21421021]
[1644974709820,3.49422504,103.35,103.34,2.43983242]
[1644974710320,0.67623528,103.35,103.34,16.94903242]
[1644974710721,0.67623528,103.35,103.34,17.16324263]
[1644974714129,0.50345218,103.41,103.35,139.0]
[1644974714329,1.09181442,103.41,103.36,14.5047]
[1644974714628,1.09181442,103.41,103.36,16.94453242]
[1644974715328,1.09181442,103.41,103.37,2.43983242]
[1644974715628,1.09181442,103.41,103.38,14.505]
[1644974715927,2.81798976,103.4,103.38,14.505]
[1644974717129,3.406352,103.4,103.38,14.505]
[1644974717733,3.406352,103.4,103.39,0.21421021]
[1644974717931,3.406352,103.4,103.38,14.505]
[1644974721053,3.406352,103.4,103.39,0.21421021]
[1644974721235,3.406352,103.4,103.38,14.505]
[1644974721439,3.406352,103.4,103.39,14.5046]
[1644974721636,3.406352,103.4,103.39,16.94443242]
[1644974722035,0.58836224,103.4,103.39,16.94443242]
[1644974722238,0.58836224,103.4,103.39,17.15864263]
[1644974722839,0.58836224,103.4,103.39,14.71881021]
[1644974723436,0.58836224,103.4,103.39,14.5046]
[1644974723638,0.58836224,103.4,103.39,14.71881021]
[1644974724765,0.58836224,103.4,103.39,14.5046]
[1644974725140,0.58836224,103.4,103.39,16.94443242]
[1644974725340,0.58836224,103.4,103.39,14.5046]
[1644974725541,0.58836224,103.4,103.39,14.71881021]
[1644974725741,0.58836224,103.4,103.39,17.15864263]
[1644974726441,0.50345218,103.41,103.4,42.0]
[1644974726641,0.04711306,103.44,103.41,0.5]
[1644974726843,0.09422612,103.44,103.41,111.49]
[1644974727045,0.09422612,103.44,103.42,2.43983242]
[1644974728142,0.09422612,103.44,103.43,14.71131021]
[1644974728543,0.09422612,103.44,103.43,17.15114263]
[1644974729946,2.91221588,103.44,103.43,0.21421021]
[1644974730146,2.91221588,103.44,103.41,14.4993]
[1644974731145,2.91221588,103.44,103.41,16.93913242]
[1644974731946,2.91221588,103.44,103.41,14.4993]
[1644974733348,2.91221588,103.44,103.42,0.21421021]
[1644974734346,2.91221588,103.44,103.41,14.4993]
[1644974734752,2.91221588,103.44,103.42,0.21421021]
[1644974735148,2.91221588,103.44,103.41,14.4993]
[1644974736051,0.18845224,103.44,103.41,14.4993]
[1644974736349,0.18845224,103.44,103.42,0.21421021]
[1644974736551,0.18845224,103.44,103.42,14.71301021]
[1644974737151,0.41221588,103.43,103.42,14.71301021]
[1644974737354,0.18845224,103.44,103.42,14.4988]
[1644974737554,0.18845224,103.44,103.43,2.61998409]
[1644974737851,0.18845224,103.44,103.42,14.4988]
[1644974738050,0.18845224,103.44,103.41,16.94053242]
[1644974738650,0.18845224,103.44,103.42,2.61998409]
[1644974739655,0.41221588,103.43,103.42,2.61998409]
[1644974739958,0.41221588,103.43,103.41,16.94053242]
[1644974742159,0.18845224,103.44,103.41,16.94053242]
[1644974743061,0.18845224,103.44,103.42,2.61998409]
[1644974743561,0.41221588,103.43,103.42,2.61998409]
[1644974744065,0.18845224,103.44,103.42,17.11968409]
[1644974744263,0.18845224,103.44,103.42,19.55951651]
[1644974745168,0.18845224,103.44,103.42,116.55951651]
[1644974745364,0.00845224,103.44,103.42,130.79951651]
[1644974745564,0.00845224,103.44,103.42,49.80560462]
[1644974745767,0.37690448,103.45,103.43,139.0]
[1644974746065,0.37690448,103.45,103.44,17.11298409]
[1644974746263,0.37690448,103.45,103.44,19.55281651]
[1644974746465,0.9871388,103.47,103.44,17.11298409]
[1644974747163,0.9871388,103.47,103.44,19.55281651]
[1644974748184,0.9871388,103.47,103.44,17.11298409]
[1644974748583,0.41221588,103.46,103.44,17.11298409]
[1644974749186,0.41221588,103.46,103.44,19.55281651]
[1644974749386,0.41221588,103.46,103.44,17.11298409]
[1644974749587,0.41221588,103.46,103.44,2.61998409]
[1644974750391,0.41221588,103.46,103.43,14.4984]
[1644974750787,0.41221588,103.46,103.44,2.61998409]
[1644974751392,0.9871388,103.47,103.43,14.4984]
[1644974751588,0.4784179,103.47,103.43,14.4984]
[1644974751786,0.4784179,103.47,103.44,2.43983242]
[1644974751987,0.41221588,103.46,103.44,2.43983242]
[1644974752295,0.41221588,103.46,103.44,16.93693242]
[1644974752487,0.41221588,103.46,103.45,2.61998409]
[1644974752891,0.4784179,103.47,103.45,5.05981651]
[1644974753288,0.4784179,103.47,103.45,2.61998409]
[1644974753688,0.4784179,103.47,103.45,19.55551651]
[1644974754802,0.4784179,103.47,103.45,17.11568409]
[1644974755398,0.4784179,103.47,103.45,2.61998409]
[1644974755796,0.4784179,103.47,103.44,14.497]
[1644974756198,0.41221588,103.46,103.45,2.61998409]
[1644974756397,0.41221588,103.46,103.44,14.497]
[1644974760803,0.41221588,103.46,103.45,2.61998409]
[1644974761002,0.41221588,103.46,103.44,14.497]
[1644974762205,0.41221588,103.46,103.45,5.05981651]
[1644974762405,0.4784179,103.47,103.46,14.4929]
[1644974763711,0.4784179,103.47,103.45,16.93593242]
[1644974764313,0.4784179,103.47,103.45,14.4961]
[1644974767110,0.41221588,103.46,103.45,14.4961]
[1644974767614,0.41221588,103.46,103.44,14.4974]
[1644974767814,0.41221588,103.46,103.39,24.8444]
[1644974768213,0.41221588,103.46,103.39,27.28423242]
[1644974768812,0.41221588,103.46,103.41,14.5018]
[1644974769212,0.41221588,103.46,103.41,16.94163242]
[1644974770612,0.19386074,103.46,103.41,16.94163242]
[1644974775037,14.69576074,103.46,103.41,16.94163242]
[1644974776446,0.19386074,103.46,103.42,97.0]
[1644974776642,0.19386074,103.46,103.43,14.4982]
[1644974776843,0.4784179,103.47,103.43,16.93803242]
[1644974777043,0.4784179,103.47,103.43,14.4982]
[1644974777244,0.4784179,103.47,103.44,2.43983242]
[1644974778950,0.4784179,103.47,103.45,14.4958]
[1644974779950,0.4784179,103.47,103.45,16.93563242]
[1644974780251,0.4784179,103.47,103.45,14.4958]
[1644974780448,0.19386074,103.46,103.45,14.4958]
[1644974783651,0.19386074,103.46,103.41,2.43983242]
[1644974783853,0.19386074,103.46,103.4,48.3309]
[1644974784251,0.19386074,103.46,103.4,50.77073242]
[1644974784451,0.19386074,103.46,103.42,14.5007]
[1644974785552,0.19386074,103.46,103.41,14.5019]
[1644974785553,14.69536074,103.46,103.41,14.5019]
[1644974786558,14.69536074,103.46,103.4,2.43983242]
[1644974786756,38.97596074,103.46,103.38,25.71513242]
[1644974787958,38.97596074,103.46,103.39,14.5045]
[1644974789165,53.76626074,103.46,103.39,14.5045]
[1644974790764,38.97596074,103.46,103.39,14.5045]
[1644974791668,38.97596074,103.46,103.39,16.94433242]
[1644974792068,24.47446074,103.46,103.39,42.16593242]
[1644974792290,0.19386074,103.46,103.39,58.08535387]
[1644974792465,0.19386074,103.46,103.4,13.99]
[1644974792669,0.19386074,103.46,103.41,14.4989]
[1644974792866,0.19386074,103.46,103.41,16.93873242]
[1644974793267,0.19386074,103.46,103.41,40.23213242]
[1644974797373,0.19386074,103.46,103.42,2.43983242]
[1644974797572,0.4784179,103.47,103.42,2.43983242]
[1644974797773,0.4784179,103.47,103.43,14.4964]
[1644974798273,0.4784179,103.47,103.43,16.93623242]
[1644974799799,0.4784179,103.47,103.43,113.93623242]
[1644974799976,0.4784179,103.47,103.43,16.93623242]
[1644974800175,0.4784179,103.47,103.43,30.92623242]
[1644974801481,1.0289763,103.46,103.43,31.17623242]
[1644974801679,1.0289763,103.46,103.44,2.83833923]
[1644974801877,1.0289763,103.46,103.45,14.4943]
[1644974805688,1.0289763,103.46,103.44,17.33633923]
[1644974813796,0.19386074,103.45,103.44,17.33633923]
[1644974813996,1.0289763,103.46,103.44,17.33633923]
[1644974814196,1.0289763,103.46,103.44,19.77617165]
[1644974820332,1.0289763,103.46,103.44,17.33633923]
[1644974821730,0.19386074,103.45,103.44,17.33633923]
[1644974822131,1.0289763,103.46,103.44,17.33633923]
[1644974823130,0.19386074,103.45,103.44,17.33633923]
[1644974823330,1.0289763,103.46,103.44,17.33633923]
[1644974823732,1.0289763,103.46,103.44,19.77617165]
[1644974824333,1.0289763,103.46,103.44,17.33633923]
[1644974824733,1.0289763,103.46,103.44,19.77617165]
[1644974825938,0.19386074,103.45,103.44,5.27817165]
[1644974826133,0.19386074,103.45,103.43,14.4997]
[1644974826334,0.19386074,103.45,103.41,2.43983242]
[1644974826541,0.19386074,103.45,103.4,26.95393242]
[1644974826736,6.74986074,103.45,103.4,26.95393242]
[1644974827035,6.74986074,103.45,103.41,14.5017]
[1644974828038,0.19386074,103.45,103.41,14.5017]
[1644974829241,0.19386074,103.45,103.41,16.94153242]
[1644974832550,39.0559763,103.46,103.41,16.94153242]
[1644974836849,15.5309763,103.46,103.41,16.94153242]
[1644974838053,15.5309763,103.46,103.41,31.20693242]
[1644974838851,15.5309763,103.46,103.41,16.94153242]
[1644974839252,15.5309763,103.46,103.41,14.5017]
[1644974843957,15.5309763,103.46,103.41,16.94153242]
[1644974846561,15.5309763,103.46,103.41,14.5017]
[1644974851085,15.5309763,103.46,103.41,16.94153242]
[1644974851887,15.5309763,103.46,103.41,2.43983242]
[1644974854695,15.5309763,103.46,103.41,16.94233242]
[1644974854893,1.0289763,103.46,103.41,16.94233242]
[1644974855898,1.0289763,103.46,103.41,39.60163242]
[1644974860842,1.0289763,103.46,103.42,13.99]
[1644974861042,1.0289763,103.46,103.43,14.4965]
[1644974861244,1.0289763,103.46,103.44,2.83833923]
[1644974861540,1.0289763,103.46,103.44,5.27817165]
[1644974861940,1.0289763,103.46,103.45,2.43983242]
[1644974862340,1.0289763,103.46,103.45,14.4961]
[1644974864145,1.22283704,103.46,103.45,14.4961]
[1644974864345,1.0289763,103.46,103.45,14.4961]
[1644974865945,1.22283704,103.46,103.45,14.4961]
[1644974867549,1.0289763,103.46,103.45,14.4961]
[1644974869347,1.22283704,103.46,103.45,14.4961]
[1644974871255,1.0289763,103.46,103.45,14.4961]
[1644974873856,1.0289763,103.46,103.45,16.93593242]
[1644974875456,0.0084179,103.47,103.46,42.0]
[1644974875656,0.0084179,103.47,103.46,56.4918]
[1644974875857,0.0084179,103.47,103.46,17.18163242]
[1644974876057,0.0084179,103.47,103.46,16.93163242]
[1644974876455,0.0084179,103.47,103.46,19.76997165]
[1644974880659,0.0084179,103.47,103.46,2.83833923]
[1644974880861,0.19386074,103.47,103.44,2.43983242]
[1644974881060,5.65286074,103.47,103.43,24.5869]
[1644974881268,0.19386074,103.47,103.43,24.5869]
[1644974881565,0.19386074,103.47,103.44,2.43983242]
[1644974881767,0.19386074,103.47,103.45,2.83833923]
[1644974881965,0.19386074,103.47,103.46,14.4956]
[1644974882166,0.68454242,103.48,103.46,14.4956]
[1644974882367,0.19386074,103.47,103.46,14.4956]
[1644974882865,0.68454242,103.48,103.46,16.93543242]
[1644974883068,0.68454242,103.48,103.47,2.83833923]
[1644974883869,0.87840316,103.48,103.46,16.93543242]
[1644974884066,0.68454242,103.48,103.46,14.4956]
[1644974884565,0.68454242,103.48,103.47,2.83833923]
[1644974885267,0.68454242,103.48,103.47,17.33253923]
[1644974885468,0.68454242,103.48,103.47,19.77237165]
[1644974887371,0.68454242,103.48,103.47,17.33253923]
[1644974888375,0.68454242,103.48,103.47,19.77237165]
[1644974888774,0.87840316,103.48,103.47,14.4942]
[1644974888980,0.68454242,103.48,103.47,17.33253923]
[1644974890578,0.68454242,103.48,103.46,14.495]
[1644974892781,0.19386074,103.47,103.46,14.495]
[1644974893786,0.68454242,103.48,103.46,17.33333923]
[1644974894688,0.68454242,103.48,103.46,19.77317165]
[1644974894886,0.68454242,103.48,103.46,17.33333923]
[1644974895890,0.68454242,103.48,103.46,14.495]
[1644974896088,0.68454242,103.48,103.47,2.83833923]
[1644974896292,0.68454242,103.48,103.42,23.9342]
[1644974896489,7.85654242,103.48,103.42,23.9342]
[1644974897389,22.35654242,103.48,103.42,38.4348]
[1644974897589,15.18454242,103.48,103.42,38.4348]
[1644974898888,15.18454242,103.48,103.42,40.87463242]
[1644974899493,15.18454242,103.48,103.42,38.4348]
[1644974900792,15.18454242,103.48,103.42,14.5006]
[1644974900995,21.01354242,103.48,103.39,1.36824286]
[1644974901211,21.01354242,103.48,103.38,26.91987528]
[1644974901212,14.5051,103.45,103.38,26.91987528]
[1644974901412,14.5051,103.45,103.38,23.1118]
[1644974901413,20.8431,103.45,103.38,23.1118]
[1644974902514,14.5051,103.45,103.38,23.1118]
[1644974902813,14.5051,103.45,103.38,37.6169]
[1644974904716,14.5051,103.45,103.38,23.1118]
[1644974905516,14.5051,103.45,103.37,14.506]
[1644974905918,22.7012,103.44,103.37,14.506]
[1644974906129,14.5066,103.43,103.37,14.506]
[1644974906322,22.7012,103.44,103.37,16.94583242]
[1644974906923,22.7012,103.44,103.37,14.506]
[1644974908022,22.7012,103.44,103.37,14.756]
[1644974908724,22.7012,103.44,103.37,17.19583242]
[1644974909323,22.7012,103.44,103.37,14.756]
[1644974909629,37.2062,103.44,103.37,14.756]
[1644974910027,73.0677,103.47,103.37,14.756]
[1644974910230,24.7181,103.47,103.38,143.99143242]
[1644974910428,0.68454242,103.48,103.4,111.4995]
[1644974910627,0.68454242,103.48,103.41,121.5616]
[1644974910828,0.68454242,103.48,103.41,136.08621497]
[1644974911027,0.68454242,103.48,103.41,152.51604739]
[1644974911331,0.68454242,103.48,103.42,2.43983242]
[1644974911627,0.68454242,103.48,103.43,110.99]
[1644974912025,0.68454242,103.48,103.44,2.43983242]
[1644974912232,0.68454242,103.48,103.45,14.4924]
[1644974912427,0.68454242,103.48,103.46,2.83833923]
[1644974913026,0.19386074,103.47,103.46,2.83833923]
[1644974913428,0.19386074,103.47,103.45,14.4951]
[1644974914232,0.68454242,103.48,103.46,2.83833923]
[1644974915335,0.19386074,103.47,103.46,2.83833923]
[1644974915539,0.19386074,103.47,103.45,14.4951]
[1644974915733,0.19386074,103.47,103.44,14.4972]
[1644974915933,0.19386074,103.47,103.41,23.9326]
[1644974916133,0.19386074,103.47,103.41,48.2359]
[1644974916735,0.19386074,103.47,103.43,14.4988]
[1644974922539,0.19386074,103.47,103.42,14.5002]
[1644974927362,14.69436074,103.47,103.42,14.5002]
[1644974933151,0.19386074,103.47,103.42,14.5002]
[1644974933350,0.19386074,103.47,103.43,2.43983242]
[1644974933548,0.68454242,103.48,103.44,14.4961]
[1644974937876,0.68454242,103.48,103.44,16.93593242]
[1644974938579,0.68454242,103.48,103.44,14.4961]
[1644974941679,15.18314242,103.48,103.44,14.4961]
[1644974942778,15.18314242,103.48,103.44,16.93593242]
[1644974942979,15.18314242,103.48,103.44,14.4961]
[1644974945380,0.68454242,103.48,103.45,2.43983242]
[1644974945680,0.68454242,103.48,103.45,14.4965]
[1644974945882,0.68454242,103.48,103.46,2.83833923]
[1644974947082,0.19386074,103.47,103.46,2.83833923]
[1644974947486,0.19386074,103.47,103.45,14.4965]
[1644974947889,0.19386074,103.47,103.44,39.80153242]
[1644974949087,0.19386074,103.47,103.44,37.3617]
[1644974951491,14.69356074,103.47,103.41,25.30084286]
[1644974951691,14.69356074,103.47,103.41,23.9326]
[1644974952995,14.69356074,103.47,103.42,14.5008]
[1644974955095,14.69356074,103.47,103.41,38.4347]
[1644974955294,39.47376074,103.47,103.41,38.4347]
[1644974956898,39.47376074,103.47,103.41,14.5021]
[1644974957499,39.47376074,103.47,103.4,37.0799]
[1644974958400,39.47376074,103.47,103.41,2.43983242]
[1644974958707,39.47376074,103.47,103.4,37.0799]
[1644974961424,39.47376074,103.47,103.4,39.51973242]
[1644974962426,39.47376074,103.47,103.4,2.43983242]
[1644974962631,54.80651616,103.47,103.38,471.49143474]
[1644974962925,54.80651616,103.47,103.38,469.05160232]
[1644974964026,54.80651616,103.47,103.37,38.0875]
[1644974964426,54.80651616,103.47,103.38,23.6743]
[1644974964826,69.54751616,103.47,103.38,23.6743]
[1644974966935,68.20476074,103.47,103.38,23.6743]
[1644974967135,69.54751616,103.47,103.38,23.6743]
[1644974969238,166.54751616,103.47,103.38,23.6743]
[1644974975049,166.54751616,103.47,103.37,23.5807]
[1644974975954,20.20774904,103.46,103.37,23.5807]
[1644974976152,14.5096,103.44,103.37,23.5807]
[1644974976854,23.4525,103.43,103.37,23.5807]
[1644974977856,23.4525,103.43,103.37,38.0885]
[1644974977857,14.5093,103.42,103.37,38.0885]
[1644974978059,23.4525,103.43,103.37,40.52833242]
[1644974978966,37.9584,103.43,103.37,40.52833242]
[1644974980391,63.0885,103.47,103.37,40.52833242]
[1644974980592,0.68454242,103.48,103.38,133.7407]
[1644974980785,0.68454242,103.48,103.41,14.4991]
[1644974980984,0.68454242,103.48,103.41,37.2498]
[1644974981185,0.68454242,103.48,103.42,2.43983242]
[1644974982786,0.68454242,103.48,103.41,23.0007]
[1644974982987,0.68454242,103.48,103.43,14.4991]
[1644974983991,0.68454242,103.48,103.43,16.93893242]
[1644974984789,0.68454242,103.48,103.43,14.4991]
[1644974988090,0.68454242,103.48,103.43,17.18893242]
[1644974989592,0.68454242,103.48,103.43,14.4991]
[1644974990799,0.68454242,103.48,103.42,14.5009]
[1644974991798,15.18454242,103.48,103.42,14.5009]
[1644974996804,0.68454242,103.48,103.42,111.5009]
[1644974997005,0.68454242,103.48,103.42,113.94073242]
[1644974997204,0.68454242,103.48,103.42,114.19073242]
[1644974999309,0.68454242,103.48,103.42,14.5009]
[1644974999908,15.18434242,103.48,103.42,14.5009]
[1644975007922,0.68454242,103.48,103.42,16.94073242]
[1644975011726,15.18364242,103.48,103.42,16.94073242]
[1644975011926,15.18364242,103.48,103.42,14.5009]
[1644975013226,0.68454242,103.48,103.42,14.5009]
[1644975016554,15.18324242,103.48,103.42,14.5009]
[1644975024362,15.18324242,103.48,103.42,16.94073242]
[1644975033873,0.68454242,103.48,103.42,113.94073242]
[1644975034072,0.68454242,103.48,103.42,129.54897528]
[1644975034272,0.68454242,103.48,103.44,14.4946]
[1644975034673,0.68454242,103.48,103.45,2.43983242]
[1644975034874,0.68454242,103.48,103.46,2.83833923]
[1644975035074,0.19386074,103.47,103.45,2.43983242]
[1644975035277,0.19386074,103.47,103.46,14.4951]
[1644975035478,0.68454242,103.48,103.46,14.4951]
[1644975036872,0.68454242,103.48,103.47,2.83833923]
[1644975037681,0.87840316,103.48,103.46,14.4951]
[1644975039075,0.87840316,103.48,103.47,2.83833923]
[1644975039375,0.87840316,103.48,103.46,14.4951]
[1644975040879,0.87840316,103.48,103.43,2.43983242]
[1644975041081,0.87840316,103.48,103.42,72.43404286]
[1644975041082,7.39240316,103.48,103.42,22.7427]
[1644975041280,7.39240316,103.48,103.4,1.36824286]
[1644975041483,7.39240316,103.48,103.39,3.80807528]
[1644975041682,7.39240316,103.48,103.39,1.36824286]
[1644975041882,21.89150316,103.48,103.39,15.87274286]
[1644975042081,22.6626,103.47,103.39,42.06417528]
[1644975042479,22.6626,103.47,103.39,38.2561]
[1644975043082,14.5044,103.45,103.39,38.2561]
[1644975044183,14.5044,103.45,103.39,40.69593242]
[1644975044683,14.5044,103.45,103.39,38.2561]
[1644975045487,14.5044,103.45,103.39,14.5045]
[1644975045687,22.7824,103.45,103.39,16.94433242]
[1644975045891,22.7824,103.45,103.37,25.23814286]
[1644975046100,22.7824,103.45,103.33,28.45069824]
[1644975046101,14.5093,103.42,103.33,28.45069824]
[1644975046300,22.1873,103.42,103.32,379.64095031]
[1644975046593,22.1873,103.42,103.32,321.55465951]
[1644975046594,38.61713242,103.42,103.32,321.55465951]
[1644975046799,24.0162,103.41,103.29,14.2264]
[1644975046999,24.0162,103.41,103.26,97.0]
[1644975047000,13.99,103.4,103.26,97.0]
[1644975047193,14.5185,103.38,103.25,1.9242217]
[1644975047415,13.99,103.37,103.25,1.9242217]
[1644975047815,2.43983242,103.36,103.25,1.9242217]
[1644975048016,4.02723336,103.34,103.25,1.9242217]
[1644975048217,14.5281,103.31,103.25,1.9242217]
[1644975048417,5.27525993,103.3,103.25,1.9242217]
[1644975048814,19.759,103.31,103.25,1.9242217]
[1644975049015,5.769,103.31,103.26,2.43983242]
[1644975049614,13.99,103.34,103.26,2.43983242]
[1644975049817,13.99,103.34,103.27,35.42545918]
[1644975050014,14.5236,103.33,103.27,35.42545918]
[1644975050216,14.5236,103.33,103.28,2.43983242]
[1644975050417,36.851,103.35,103.28,2.43983242]
[1644975050616,22.861,103.35,103.28,2.43983242]
[1644975050814,22.861,103.35,103.29,34.79099459]
[1644975051214,22.861,103.35,103.29,37.23082701]
[1644975051215,40.2132648,103.35,103.29,37.23082701]
[1644975052917,22.861,103.35,103.29,34.79099459]
[1644975053117,22.861,103.35,103.3,2.43983242]
[1644975053819,22.861,103.35,103.28,2.43983242]
[1644975054219,59.3641,103.35,103.26,2.43983242]
[1644975054419,156.3641,103.35,103.26,2.43983242]
[1644975054622,156.3641,103.35,103.23,2.43983242]
[1644975054819,25.51014893,103.34,103.23,43.58585371]
[1644975055022,5.9670979,103.32,103.23,43.58585371]
[1644975055225,44.7349979,103.32,103.23,43.58585371]
[1644975055425,44.7349979,103.32,103.23,58.11025371]
[1644975055628,44.7349979,103.32,103.23,43.58585371]
[1644975055826,44.7349979,103.32,103.23,2.43983242]
[1644975056729,44.7349979,103.32,103.23,129.05520684]
[1644975057031,24.7779,103.32,103.24,132.16188797]
[1644975057227,36.851,103.35,103.24,132.16188797]
[1644975057427,60.135,103.35,103.25,2.43983242]
[1644975057927,42.60968845,103.34,103.26,39.14725004]
[1644975058535,42.60968845,103.34,103.25,2.43983242]
[1644975058830,56.59968845,103.34,103.23,48.06323242]
[1644975059037,24.6007,103.33,103.23,48.06323242]
[1644975059433,17.91655838,103.32,103.23,62.58683242]
[1644975060238,14.5259,103.32,103.23,62.58683242]
[1644975060438,24.6007,103.33,103.23,174.67760684]
[1644975060640,24.6007,103.33,103.23,191.24467794]
[1644975060839,24.6007,103.33,103.25,97.0]
[1644975061241,24.6007,103.33,103.27,37.59841393]
[1644975061439,32.76955166,103.33,103.27,37.59841393]
[1644975061641,32.76955166,103.33,103.27,40.03824635]
[1644975061839,32.76955166,103.33,103.27,2.43983242]
[1644975062040,32.76955166,103.33,103.24,2.43983242]
[1644975062445,32.76955166,103.33,103.23,45.6234]
[1644975062743,47.29295166,103.33,103.23,48.24254054]
[1644975062942,47.29295166,103.33,103.23,50.68237296]
[1644975063342,22.861,103.35,103.23,275.70717296]
[1644975063546,22.861,103.35,103.25,97.0]
[1644975063742,22.861,103.35,103.25,13.99]
[1644975063942,22.861,103.35,103.26,2.43983242]
[1644975064144,22.861,103.35,103.26,2.68983242]
[1644975064450,50.10873081,103.35,103.27,41.4555009]
[1644975064844,64.63023081,103.35,103.27,43.89533332]
[1644975065143,37.3825,103.35,103.28,2.43983242]
[1644975066179,37.3825,103.35,103.29,48.01220185]
[1644975068773,37.3825,103.35,103.28,2.43983242]
[1644975068972,37.3825,103.35,103.26,2.43983242]
[1644975069772,23.19072147,103.34,103.26,2.43983242]
[1644975069974,14.5238,103.33,103.26,2.43983242]
[1644975070175,14.5238,103.33,103.22,2.43983242]
[1644975070373,37.5307,103.32,103.22,2.43983242]
[1644975070575,44.2207,103.32,103.21,24.2771]
[1644975070972,8.28652536,103.31,103.22,41.16952732]
[1644975071378,14.5293,103.29,103.22,41.16952732]
[1644975071973,37.72002147,103.29,103.22,41.16952732]
[1644975073075,37.72002147,103.29,103.19,35.06123149]
[1644975073275,37.72002147,103.29,103.19,22.5069]
[1644975073675,37.72002147,103.29,103.19,121.94673242]
[1644975074079,37.72002147,103.29,103.2,47.77541294]
[1644975074577,37.72002147,103.29,103.2,50.21524536]
[1644975074775,37.72002147,103.29,103.2,47.77541294]
[1644975074975,14.5293,103.29,103.2,47.77541294]
[1644975075978,14.5293,103.29,103.21,2.43983242]
[1644975076179,14.5263,103.31,103.21,2.43983242]
[1644975076384,63.1577,103.36,103.22,113.5670711]
[1644975076579,63.1577,103.36,103.24,97.0]
[1644975076778,63.1577,103.36,103.23,180.22497794]
[1644975076979,63.1577,103.36,103.23,180.47497794]
[1644975077181,26.50970647,103.35,103.24,43.24813795]
[1644975077678,26.50970647,103.35,103.24,43.49813795]
[1644975077884,14.5234,103.33,103.25,14.5219]
[1644975078081,14.5234,103.33,103.26,36.22188494]
[1644975078279,19.49094036,103.33,103.26,36.22188494]
[1644975078480,14.5234,103.33,103.26,36.22188494]
[1644975078983,14.5234,103.33,103.26,50.74368494]
[1644975079584,7.83314796,103.32,103.26,36.22188494]
[1644975079782,22.35754796,103.32,103.23,177.64790684]
[1644975079984,22.35754796,103.32,103.23,160.1173]
[1644975080184,22.35754796,103.32,103.24,14.5235]
[1644975080684,22.35754796,103.32,103.23,49.1273]
[1644975080886,22.35754796,103.32,103.24,47.91982968]
[1644975081087,36.34754796,103.32,103.24,47.91982968]
[1644975082886,36.34754796,103.32,103.23,49.1273]
[1644975083087,61.09494796,103.32,103.2,46.18714552]
[1644975083288,61.09494796,103.32,103.2,53.04427442]
[1644975083289,181.98414796,103.32,103.2,53.04427442]
[1644975083891,181.98414796,103.32,103.21,40.19163686]